[Event "Krakow Championship-A 2022"]
[Site "Krakow"]
[Date "2022.06.29"]
[Round "6.22"]
[White "Gjestemoen-VonHirsch, Andre"]
[Black "Torkkola, Henri"]
[Result "1-0"]
[ECO "A15"]
[WhiteElo "2236"]
[BlackElo "2197"]
[Annotator "TA"]
[PlyCount "151"]
[EventDate "2022.06.25"]
[EventType "swiss"]
[EventCountry "POL"]
[SourceTitle "playchess.com"]
[Source "ChessBase"]
[SourceQuality "1"]
[TimeControl "40/5400+30:1800+30"]

{[%evp 21,151,0,1,0,1,0,5,0,6,0,26,10,37,0,0,0,0,0,0,0,0,0,0,0,30,30,30,27,30,30,30,25,25,18,20,18,27,10,38,43,82,88,86,87,95,93,144,142,139,146,133,84,119,84,84,78,93,49,71,70,93,85,161,147,161,100,94,93,263,262,248,241,255,249,330,312,849,364,394,362,356,341,437,419,418,408,461,458,433,430,421,421,389,382,440,443,379,414,841,860,1268,1204,1884,1302,29966,29965,29943,12818,29976,29977,29977,29978,29978,29978,29978,29979,29979,29980,29982,29983,29983,29984,29984,29985,29985,29986,29990,29991,29991,29992,29992,29993]} 1. c4 {[%emt 0:03:15]} Nf6 {[%emt 0:06:55]} 2. g3 {[%emt 0:00:31]} g6 {[%emt 0:00:06]} 3. Bg2 {[%emt 0:00:09]} Bg7 {[%emt 0:00:05]} 4. Nc3 {[%emt 0:00:17]} O-O {[%emt 0:00:20]} 5. d3 {[%emt 0:00:06]} d6 {[%emt 0:00:18]} 6. Rb1 {[%emt 0:00:21]} a5 {[%emt 0:01:38]} 7. a3 {[%emt 0:00:10][%cal Ba2a3,Ba3b4,Bb4b5][%mdl 32]} e5 {[%emt 0:01:30]} 8. b4 {[%emt 0:00:44]} axb4 {[%emt 0:00:27]} 9. axb4 {[%emt 0:00:09]} c6 {[%emt 0:00:25]} 10. Nf3 {[%emt 0:00:28]} Re8 {[%emt 0:01:28]} 11. O-O {[%emt 0:09:20]} h6 {[%emt 0:00:11]} 12. Bb2 {[%emt 0:01:59] A24: English Opening vs King's Indian: Lines without ...Nc6.} Be6 {[%emt 0:00:51] [#]} 13. Ra1 $146 {[%emt 0:04:26]} ({Predecessor:} 13. b5 Nbd7 14. Ra1 d5 15. Rxa8 Qxa8 16. bxc6 bxc6 17. cxd5 cxd5 18. Ba1 Rc8 19. Qb1 {0-1 (44) Kuzmin,E (2277)-Lorparizangeneh,S (2515) St Petersburg 2017}) 13... Na6 {[%emt 0:03:44]} 14. b5 {[%emt 0:02:51] The position is equal.} Nc5 {[%emt 0:00:23]} 15. Qc2 {[%emt 0:01:21]} Qd7 {[%emt 0:06:45]} 16. Rfd1 {[%emt 0:26:19]} Bg4 {[%emt 0:15:28]} 17. bxc6 {[%emt 0:07:31]} (17. Rxa8 {looks sharper.} Rxa8 18. d4 exd4 19. Nxd4 Rc8 20. Ba3) 17... bxc6 {[%emt 0:00:18]} 18. Na4 {[%emt 0:00:10]} Nxa4 {[%emt 0:10:34]} 19. Rxa4 {[%emt 0:00:06]} Rxa4 {[%emt 0:00:04]} 20. Qxa4 {[%emt 0:00:04]} Qb7 {[%emt 0:00:05]} 21. Qc2 {[%emt 0:07:44]} Rb8 {[%emt 0:07:03]} 22. Ba1 {[%emt 0:01:13]} Qb6 {[%emt 0:10:11]} 23. c5 {[%emt 0:04:53]} Qxc5 {[%emt 0:05:08]} 24. Qxc5 {[%emt 0:00:07][%mdl 64] Remove Defender} dxc5 {[%emt 0:00:03]} 25. Bxe5 {[%emt 0:01:18]} Re8 {[%emt 0:00:04]} 26. Bxf6 {[%emt 0:00:42]} Bxf6 {[%emt 0:00:04]} 27. h3 {[%emt 0:02:08]} Bf5 {[%emt 0:02:16]} 28. g4 {[%emt 0:01:36]} Bc8 {[%emt 0:01:34]} 29. Kf1 {[%emt 0:02:05]} Ba6 {[%emt 0:03:35]} 30. Nd2 {[%emt 0:00:21]} Bb5 {[%emt 0:02:22]} 31. Ne4 {[%emt 0:01:49]} Be7 {[%emt 0:00:21]} 32. Rc1 {[%emt 0:00:41]} Ra8 {[%emt 0:00:11][%cal Oc5c4]} 33. Bf3 {[%emt 0:00:31]} f5 {[%emt 0:07:05]} (33... Kg7 $142) 34. gxf5 $16 {[%emt 0:01:20]} gxf5 {[%emt 0:00:06]} 35. Nxc5 {[%emt 0:00:58]} Bg5 {[%emt 0:00:32] [#]} 36. Rb1 {[%emt 0:00:37]} (36. Rc2 $142 $1) 36... Ra3 {[%emt 0:01:18]} 37. Kg2 {[%emt 0:00:50]} Kf7 {[%emt 0:00:51]} 38. Rb3 {[%emt 0:11:13]} Ra1 {[%emt 0:01:12]} 39. Rc3 {[%emt 0:01:41]} Ke7 {[%emt 0:01:44]} 40. Rc2 {[%emt 0:02:20]} Ra3 {[%emt 0:01:08] Prevents Nb3.} 41. Bh5 {[%emt 0:13:09]} Kd6 {[%emt 0:06:18]} (41... Bf4 $16) 42. Bg6 $18 {[%emt 0:04:49]} Ke5 {[%emt 0:01:20] [#]} 43. Kg3 {[%emt 0:01:31]} (43. Nd7+ $1 $18 Ke6 44. Nf8+ Kd6 45. Bxf5) 43... Be7 {[%emt 0:02:12]} 44. f4+ {[%emt 0:01:48]} Kd5 $2 {[%emt 0:05:43] A mistake that costs the game.} (44... Kf6 $16) 45. Bf7+ {[%emt 0:04:23]} Kd6 {[%emt 0:03:25]} 46. Be6 {[%emt 0:02:27]} Ba4 {[%emt 0:06:52]} 47. Nxa4 {[%emt 0:04:09]} Kxe6 {[%emt 0:00:39]} 48. Rxc6+ {[%emt 0:00:30][%mdl 4096] Endgame KRB-KRN} Bd6 $2 {[%emt 0:01:03]} (48... Kd7 49. Rc4 Ra2) 49. Nc3 {[%emt 0:00:57]} (49. Nb2 $142) 49... Rb3 {[%emt 0:00:21]} 50. Kf3 {[%emt 0:01:57]} Kd7 {[%emt 0:00:58]} 51. Rc4 {[%emt 0:00:06]} Bb4 {[%emt 0:00:18]} 52. Nd5 {[%emt 0:00:31]} Bd2 {[%emt 0:00:12]} 53. Nf6+ {[%emt 0:01:06]} Ke6 {[%emt 0:00:21]} 54. Nh5 {[%emt 0:00:16]} Rb1 {[%emt 0:00:46]} 55. Rc5 {[%emt 0:02:27]} Rf1+ {[%emt 0:01:00]} 56. Kg2 {[%emt 0:00:03]} Re1 {[%emt 0:00:06]} 57. Re5+ {[%emt 0:03:23]} Kd6 {[%emt 0:00:01]} 58. Kf2 {[%emt 0:00:40]} Rh1 {[%emt 0:00:02]} 59. Rxf5 {[%emt 0:00:45]} Rxh3 {[%emt 0:00:02]} (59... Rh2+ $142 60. Kf3 Rxh3+ 61. Kg2 Rh4) 60. Ng3 {[%emt 0:00:17]} Ke6 {[%emt 0:01:04]} 61. Rh5 {[%emt 0:00:44]} Rxh5 {[%emt 0:01:15]} 62. Nxh5 {[%emt 0:00:05] White wants to mate with e4. KB-KN} Kf5 {[%emt 0:00:05]} 63. Kf3 {[%emt 0:00:07]} Kg6 {[%emt 0:00:23]} 64. Kg4 {[%emt 0:00:13] White threatens e4 and mate.} Be3 {[%emt 0:00:11]} 65. f5+ {[%emt 0:00:10] White mates.} Kf7 {[%emt 0:00:06]} 66. Kf3 {[%emt 0:00:06]} Bd4 {[%emt 0:00:08]} 67. e3 {[%emt 0:00:05][%cal Be2e3,Be3e4,Be4e5,Be5e6,Be6e7][%mdl 32]} Bc3 {[%emt 0:00:04]} 68. d4 {[%emt 0:00:23]} Bb2 {[%emt 0:00:08]} 69. Ke4 {[%emt 0:00:06]} Ke7 {[%emt 0:00:09]} 70. Kd5 {[%emt 0:00:09]} Bc1 {[%emt 0:00:05]} 71. e4 {[%emt 0:00:03]} Bb2 {[%emt 0:00:05]} 72. e5 {[%emt 0:00:03]} Kf7 {[%emt 0:00:04]} 73. e6+ {[%emt 0:00:12]} Ke7 {[%emt 0:00:03]} 74. f6+ {[%emt 0:00:05]} Kf8 {[%emt 0:00:04]} 75. e7+ {[%emt 0:00:13]} Kf7 {[%emt 0:00:05]} 76. Ng7 {[%emt 0:00:10] Weighted Error Value: White=0.17 (very precise) /Black=0.24 (precise)} 1-0

[Event "Krakow Championship-A 2022"]
[Site "Krakow"]
[Date "2022.06.30"]
[Round "7.1"]
[White "Nguyen, Piotr"]
[Black "Fus, Jakub"]
[Result "1/2-1/2"]
[ECO "A46"]
[WhiteElo "2402"]
[BlackElo "2378"]
[Annotator "TA"]
[PlyCount "55"]
[EventDate "2022.06.25"]
[EventType "swiss"]
[EventCountry "POL"]
[SourceTitle "playchess.com"]
[Source "ChessBase"]
[SourceQuality "1"]
[TimeControl "40/5400+30:1800+30"]

{[%evp 17,55,12,30,23,11,22,12,11,24,27,14,0,10,12,19,10,27,39,50,36,43,36,37,33,29,28,47,51,54,4,8,4,6,3,5,8,16,5,9,-7]} 1. d4 {[%emt 0:00:03]} Nf6 {[%emt 0:00:22]} 2. Nf3 {[%emt 0:00:07]} d5 {[%emt 0:01:17]} 3. g3 {[%emt 0:00:06]} e6 {[%emt 0:00:23]} 4. Bg2 {[%emt 0:00:48]} Be7 {[%emt 0:00:18]} 5. O-O {[%emt 0:00:27]} O-O {[%emt 0:00:17]} 6. c4 {[%emt 0:00:09]} c6 {[%emt 0:00:42]} 7. Qc2 {[%emt 0:00:48]} b6 {[%emt 0:00:38]} 8. Nbd2 {[%emt 0:04:50]} Bb7 {[%emt 0:00:24]} 9. e4 {[%emt 0:00:05]} Na6 {[%emt 0:00:55][%cal Bb8a6,Ba6c5,Bc5e6,Be6d4][%mdl 32]} 10. a3 $1 {[%emt 0:00:09] The main line 10.a3 scores better than 10.e5. E06: Closed Catalan: Early deviations.} c5 {[%emt 0:01:12][%cal Rd5e4]} 11. exd5 {[%emt 0:05:37]} exd5 {[%emt 0:00:21]} 12. dxc5 {[%emt 0:00:15]} Nxc5 {[%emt 0:01:02]} 13. b4 {[%emt 0:00:23]} Ne6 {[%emt 0:01:06] [#]} 14. Nh4 $146 {[%emt 0:06:15]} ({Predecessor:} 14. Bb2 Rc8 15. Ne5 Qc7 16. Rac1 d4 17. Bxb7 Qxb7 18. Qd3 Nd7 19. Nef3 a5 20. Nxd4 Nxd4 21. Bxd4 axb4 22. axb4 Bxb4 23. Rfd1 Nc5 24. Bxc5 Bxc5 25. Ne4 Rfe8 {½-½ (25) Donchenko,A (2588)-Eljanov,P (2706) Biel 2018}) 14... Nd4 {[%emt 0:08:46]} 15. Qd1 {[%emt 0:03:35]} Ne4 {[%emt 0:15:31]} 16. Bb2 {[%emt 0:01:02] [#] Prevents Nc3. Threatens to win with Nxe4.} Bf6 {[%emt 0:09:59]} 17. Ra2 {[%emt 0:05:28] Bxd4 is the strong threat.} Bxh4 {[%emt 0:24:14]} 18. Bxd4 {[%emt 0:14:32] Black must now prevent Nxe4.} Bg5 $1 {[%emt 0:02:27]} 19. Nxe4 {[%emt 0:22:52]} dxe4 {[%emt 0:00:52]} 20. Qa1 {[%emt 0:00:13]} Bh6 {[%emt 0:02:59]} 21. c5 {[%emt 0:01:13]} Bd5 {[%emt 0:03:45]} 22. Rc2 {[%emt 0:08:38]} Bb3 {[%emt 0:02:30]} 23. Rc3 {[%emt 0:00:58]} (23. Re2 $1 $14) 23... Qxd4 $11 {[%emt 0:02:33] The position is equal.} 24. Rxb3 {[%emt 0:00:03]} bxc5 {[%emt 0:00:51]} 25. Qxd4 {[%emt 0:01:40][%mdl 64] [#] Remove Defender} cxd4 {[%emt 0:00:04]} 26. Bxe4 {[%emt 0:00:02]} Rac8 {[%emt 0:00:41]} 27. b5 {[%emt 0:03:10]} Bd2 {[%emt 0:01:50]} 28. a4 {[%emt 0:03:07] Weighted Error Value: White=0.05 (flawless) /Black=0.04 (flawless)} 1/2-1/2

[Event "Krakow Championship-A 2022"]
[Site "Krakow"]
[Date "2022.06.30"]
[Round "7.2"]
[White "Rudolf, Michal"]
[Black "Warakomski, Tomasz"]
[Result "0-1"]
[ECO "B40"]
[WhiteElo "2361"]
[BlackElo "2534"]
[Annotator "TA"]
[PlyCount "72"]
[EventDate "2022.06.25"]
[EventType "swiss"]
[EventCountry "POL"]
[SourceTitle "playchess.com"]
[Source "ChessBase"]
[SourceQuality "1"]
[TimeControl "40/5400+30:1800+30"]

{[%evp 12,72,63,60,72,56,42,45,53,65,56,0,-6,-6,12,-41,-39,-47,-46,-47,-42,-40,-43,-35,-14,-48,-43,-37,-41,-70,-66,-77,-49,-141,-136,-121,-127,-243,-195,-198,-200,-229,-249,-260,-262,-250,-247,-442,-440,-429,-438,-444,-431,-443,-435,-485,-476,-568,-530,-586,-579,-533,-527]} 1. e4 {[%emt 0:00:12]} c5 {[%emt 0:00:05]} 2. Nf3 {[%emt 0:00:05]} e6 {[%emt 0:00:05]} 3. c3 {[%emt 0:01:49]} Nf6 {[%emt 0:03:12]} 4. e5 {[%emt 0:00:14]} Nd5 {[%emt 0:00:06]} 5. Bc4 {[%emt 0:00:12]} Nb6 {[%emt 0:04:27]} 6. Bb3 {[%emt 0:00:10]} c4 {[%emt 0:03:14]} 7. Bc2 {[%emt 0:00:04]} d6 {[%emt 0:00:05] B22: Sicilian: 2 c3.} 8. d4 {[%emt 0:06:49]} cxd3 {[%emt 0:01:20]} 9. Qxd3 {[%emt 0:00:52]} (9. Bxd3 dxe5 10. Nxe5 N8d7 11. Nxd7 (11. Bb5 a6 $11) 11... Bxd7 $11) 9... Nc6 {[%emt 0:00:34] White is slightly better.} 10. exd6 {[%emt 0:14:18]} Qxd6 {[%emt 0:02:36]} 11. O-O {[%emt 0:01:02]} (11. Qe2 $14) 11... Qxd3 $11 {[%emt 0:01:02]} 12. Bxd3 {[%emt 0:00:05] [#]} e5 $146 {[%emt 0:02:24] [#]} ({Predecessor:} 12... Bd7 13. Nbd2 O-O-O 14. Nc4 Nd5 15. Nce5 Nxe5 16. Nxe5 Be8 17. Be4 f6 18. Nf3 Bg6 {½-½ (59) Lin,C (2526)-Zeng,C (2549) China 2016}) 13. Bb5 {[%emt 0:05:06]} ({Better is} 13. Nxe5 $1 $11 Nxe5 14. Re1) 13... f6 $1 $15 {[%emt 0:00:24]} 14. Re1 {[%emt 0:07:17]} Kf7 {[%emt 0:05:08]} 15. Nbd2 {[%emt 0:04:07]} Be6 {[%emt 0:06:24]} 16. a4 {[%emt 0:01:19]} a6 {[%emt 0:03:25]} 17. Bf1 {[%emt 0:00:16]} g5 {[%emt 0:02:34]} 18. a5 {[%emt 0:02:54]} (18. Ne4 {seems wilder.} g4 19. Nh4 Na5 20. Be3) 18... Nd5 {[%emt 0:00:20][%cal Bb6d5,Bd5f4,Bf4h3][%mdl 32]} 19. Nc4 {[%emt 0:01:37][%cal Oc1g5]} Rd8 {[%emt 0:05:37]} 20. Ne3 {[%emt 0:04:32]} Nf4 {[%emt 0:00:51]} 21. Rd1 {[%emt 0:03:20]} Be7 {[%emt 0:02:50]} 22. g3 {[%emt 0:01:24]} (22. Nd2 $1 $15) 22... Rxd1 {[%emt 0:03:51] 0x0.002229c91810dp-1022s more active pieces.} 23. Nxd1 {[%emt 0:00:05]} Nh3+ {[%emt 0:05:25]} 24. Kh1 {[%emt 0:03:36]} (24. Bxh3 $17 Bxh3 25. Be3) 24... Rd8 {[%emt 0:04:42][%cal Bh8d8,Bd8d6,Bd6d1,Bd1b1][%mdl 32]} 25. Be3 {[%emt 0:00:59] [#]} Nxa5 $1 {[%emt 0:02:57][%mdl 512]} 26. Bb6 {[%emt 0:03:06] [#]} (26. Bxh3 Bxh3) 26... Rd6 $1 {[%emt 0:03:13]} ({Not} 26... Nb3 27. Bxd8 Nxa1 28. Bxe7 Kxe7 29. Nd2 $17) 27. Bxh3 {[%emt 0:07:06]} Nb3 {[%emt 0:00:14]} 28. Bxe6+ {[%emt 0:00:04]} Kxe6 {[%emt 0:01:05]} ({Inferior is} 28... Rxe6 29. Ra4 Rxb6 30. Rc4) 29. Ra4 {[%emt 0:02:06]} (29. Rb1 Rxb6 30. Ne3) 29... Rxd1+ $19 {[%emt 0:01:26] Black is clearly winning.} ({Don't blunder} 29... Rxb6 $2 30. Kg2 $19) 30. Kg2 {[%emt 0:00:05]} Rb1 {[%emt 0:00:37]} 31. h4 {[%emt 0:02:28]} h6 {[%emt 0:07:55][%cal Bh7h6,Bh6g5,Bg5g4][%mdl 32]} 32. hxg5 {[%emt 0:00:09]} hxg5 {[%emt 0:00:04]} 33. Ra2 {[%emt 0:00:36]} g4 {[%emt 0:00:19]} 34. Nh2 {[%emt 0:00:26]} Nc1 {[%emt 0:00:10]} 35. Ra4 {[%emt 0:00:25]} f5 {[%emt 0:00:11] White must now prevent ...Nd3.} 36. Be3 {[%emt 0:01:00]} Nd3 {[%emt 0:01:04] White did not feel at home in the position after the opening.  Weighted Error Value: White=0.33/Black=0.05 (flawless)} 0-1

[Event "Krakow Championship-A 2022"]
[Site "Krakow"]
[Date "2022.06.30"]
[Round "7.3"]
[White "Pechac, Jergus"]
[Black "Klimkowski, Jan"]
[Result "1/2-1/2"]
[ECO "E16"]
[WhiteElo "2597"]
[BlackElo "2401"]
[Annotator "TA"]
[PlyCount "88"]
[EventDate "2022.06.25"]
[EventType "swiss"]
[EventCountry "POL"]
[SourceTitle "playchess.com"]
[Source "ChessBase"]
[SourceQuality "1"]
[TimeControl "40/5400+30:1800+30"]

{[%evp 10,88,26,26,26,31,33,43,52,41,58,55,81,53,72,41,44,18,26,25,19,28,28,17,16,15,21,0,0,-15,27,-7,-8,-35,-23,-31,-16,-16,-16,-19,-20,-77,-69,-80,-54,-58,-69,-58,-51,-57,-64,-131,-106,-134,-13,-50,-56,-122,-120,-223,-114,-108,-36,-20,0,0,0,0,0,0,0,0,0,0,0,0,0,0,0,0,0]} 1. d4 {[%emt 0:02:41]} Nf6 {[%emt 0:00:13]} 2. c4 {[%emt 0:00:05]} e6 {[%emt 0:00:05]} 3. Nf3 {[%emt 0:00:18]} Bb4+ {[%emt 0:00:23]} 4. Bd2 {[%emt 0:00:55]} Qe7 {[%emt 0:00:50]} 5. g3 {[%emt 0:00:33]} Bxd2+ {[%emt 0:00:58]} 6. Qxd2 {[%emt 0:00:09]} Nc6 {[%emt 0:01:08] E11: Bogo-Indian.} 7. b3 {[%emt 0:00:12]} a5 {[%emt 0:02:30]} 8. Nc3 {[%emt 0:00:07]} O-O {[%emt 0:12:23][%cal Oa5a4] White is slightly better.} 9. Bg2 {[%emt 0:00:26]} d5 {[%emt 0:01:50]} 10. O-O {[%emt 0:00:13]} Rd8 {[%emt 0:02:24] [#]} 11. Rfc1 $146 {[%emt 0:00:11]} ({Predecessor:} 11. Rfd1 Bd7 12. e3 Be8 13. Qb2 h6 14. Rac1 Nb4 15. a3 Na6 16. Ne5 Rac8 17. c5 {0-1 (37) Grischuk,A (2742)-Martinez Alcantara,J (2591) Chess.com INT 2022}) 11... Bd7 {[%emt 0:01:53]} 12. Qf4 {[%emt 0:01:57]} Be8 {[%emt 0:02:50][%cal Oa5a4]} 13. cxd5 {[%emt 0:01:58]} Nxd5 {[%emt 0:05:28]} 14. Nxd5 {[%emt 0:00:08]} exd5 {[%emt 0:00:39]} 15. e3 {[%emt 0:00:46]} Rd6 {[%emt 0:10:14]} 16. Qh4 {[%emt 0:00:49] [#] Hoping for Qxe7.} f6 {[%emt 0:01:13]} 17. Nd2 {[%emt 0:02:10]} Bf7 {[%emt 0:04:14]} 18. Rc3 {[%emt 0:01:36]} Na7 {[%emt 0:05:28]} 19. e4 {[%emt 0:07:23][%cal Oe4e5]} Re8 {[%emt 0:06:51]} 20. Re3 {[%emt 0:03:47]} Re6 {[%emt 0:09:49]} 21. Bh3 {[%emt 0:06:27]} (21. Rae1 $5 {[%cal Re4d5]}) 21... g5 {[%emt 0:00:06]} 22. Qg4 {[%emt 0:00:05]} h5 {[%emt 0:00:59]} 23. Qe2 {[%emt 0:03:57]} g4 {[%emt 0:00:04]} 24. Bg2 {[%emt 0:00:05]} Nc6 {[%emt 0:04:12][%cal Ba7c6,Bc6d4,Bd4c2][%mdl 32]} 25. Re1 {[%emt 0:00:09]} (25. Rc1 $11 {remains equal.}) 25... Nxd4 $17 {[%emt 0:02:02]} 26. Qd3 {[%emt 0:00:03]} Qc5 {[%emt 0:02:17]} 27. exd5 {[%emt 0:02:42]} Rxe3 {[%emt 0:00:04]} 28. Rxe3 {[%emt 0:00:07]} (28. fxe3 $2 Nc2 29. Re2 Nxe3 $19) 28... Rxe3 {[%emt 0:02:44]} ({But not} 28... Qc1+ 29. Nf1 Qc5 30. Rxe8+ Bxe8 31. Ne3 $11) 29. fxe3 {[%emt 0:00:08]} Nc2 $36 {[%emt 0:05:00][%mdl 2048] Black has good play.} ({Of course not} 29... Qc1+ 30. Nf1 Nf3+ 31. Bxf3 gxf3 32. e4 $11) 30. Kf2 {[%emt 0:00:07]} (30. d6 $15 cxd6 31. Ne4 Qxe3+ 32. Qxe3 Nxe3 33. Nxd6) 30... Nb4 {[%emt 0:00:02][%csl LRa2,LRd3,LRd5]} 31. Qc4 {[%emt 0:00:05]} Qd6 {[%emt 0:02:45]} ({Black should try} 31... Qxc4 $17 32. Nxc4 b6) 32. Ne4 {[%emt 0:03:46]} Qe5 {[%emt 0:00:28] ...Qb2+ is the strong threat.} 33. Nc3 {[%emt 0:00:19]} (33. Qc3 $15 Nxd5 34. Qxe5 fxe5 35. Nc5) 33... c6 {[%emt 0:02:45]} ({Don't play} 33... Nc2 $6 34. Be4 Nb4 35. Qd4 $11) 34. Ke2 {[%emt 0:17:20] [#]} (34. Qd4 $17) 34... Nxd5 {[%emt 0:03:44]} (34... Nxa2 $1 $19 {[%mdl 512]} 35. Nxa2 Qb2+ 36. Kf1 Qxa2) 35. Bxd5 {[%emt 0:00:22]} cxd5 $19 {[%emt 0:00:59][%mdl 4096] Endgame KQB-KQN} (35... Bxd5 $17 36. Qd4 b5) 36. Qc5 $15 {[%emt 0:03:21]} Qf5 {[%emt 0:02:48] Threatens to win with ...Qc2+. The position is equal.} 37. Kd2 {[%emt 0:01:20] Inhibits Qc2+.} Qf2+ {[%emt 0:02:15]} 38. Ne2 {[%emt 0:00:03]} Qxh2 {[%emt 0:00:24]} 39. Qxa5 {[%emt 0:00:06]} Kg7 {[%emt 0:00:51]} 40. Qb4 {[%emt 0:01:04]} Qf2 {[%emt 0:00:50]} 41. Qxb7 {[%emt 0:42:33]} h4 {[%emt 0:04:52]} 42. Qb4 {[%emt 0:00:00]} Bh5 {[%emt 0:00:09] aiming for ...h3.} 43. Qe7+ {[%emt 0:00:00]} Bf7 {[%emt 0:04:05]} 44. Qb4 {[%emt 0:00:00]} Bh5 {[%emt 0:00:04] Weighted Error Value: White=0.18 (very precise) /Black=0.16 (very precise)} 1/2-1/2

[Event "Krakow Championship-A 2022"]
[Site "Krakow"]
[Date "2022.06.30"]
[Round "7.4"]
[White "Zwardon, Vojtech"]
[Black "Romanishin, Oleg M"]
[Result "1-0"]
[ECO "A20"]
[WhiteElo "2482"]
[BlackElo "2400"]
[Annotator "TA"]
[PlyCount "79"]
[EventDate "2022.06.25"]
[EventType "swiss"]
[EventCountry "POL"]
[SourceTitle "playchess.com"]
[Source "ChessBase"]
[SourceQuality "1"]
[TimeControl "40/5400+30:1800+30"]

{[%evp 11,79,0,0,0,20,10,24,25,26,9,14,-19,-8,-29,0,0,0,-28,-27,-37,-19,-37,0,-39,0,0,0,-10,-2,-28,-37,-72,-54,-49,-51,-70,-41,-42,-29,-41,-25,-41,-25,-18,-24,-25,-35,-19,-14,-55,-57,-55,-51,-61,-66,-49,-57,-75,0,0,0,0,0,0,0,0,0,0,0,0]} 1. c4 {[%emt 0:09:04]} e5 {[%emt 0:00:11]} 2. g3 {[%emt 0:00:04]} Nf6 {[%emt 0:00:06]} 3. Bg2 {[%emt 0:00:03]} d5 {[%emt 0:01:30]} 4. cxd5 {[%emt 0:00:07]} Nxd5 {[%emt 0:00:05]} 5. Nf3 {[%emt 0:00:03]} Nc6 {[%emt 0:00:26]} 6. O-O {[%emt 0:00:05]} Nb6 {[%emt 0:00:33]} 7. b3 {[%emt 0:00:03] A20: English Opening: 1...e5.} g6 {[%emt 0:00:27] 7...Be6 gains popularity.} 8. Bb2 {[%emt 0:01:12]} Bg7 {[%emt 0:00:09]} 9. d3 {[%emt 0:02:27] White has an edge.} O-O {[%emt 0:00:26][%cal Oe5e4]} 10. Nc3 {[%emt 0:02:42]} Nd4 {[%emt 0:01:53]} 11. Nxd4 {[%emt 0:00:36]} exd4 {[%emt 0:00:09]} 12. Ne4 {[%emt 0:00:02] [#]} a5 $146 {[%emt 0:05:45]} ({Predecessor:} 12... Re8 13. Rc1 Be6 14. Qd2 Bd5 15. Rc2 Qe7 16. Rfc1 c6 17. Qa5 Qe5 18. Ba3 Bxe4 19. Qxe5 Rxe5 20. Bxe4 {1-0 (49) Perhinig,R (2242)-Huber,M (2344) Graz 2021}) 13. Qc2 {[%emt 0:02:15]} c6 {[%emt 0:05:40]} 14. Ba3 {[%emt 0:00:16]} Re8 {[%emt 0:00:33]} 15. Bc5 {[%emt 0:03:30]} Nd7 {[%emt 0:04:08]} 16. Ba3 {[%emt 0:01:46]} Nb6 {[%emt 0:01:59]} 17. Qb2 {[%emt 0:00:10]} Bg4 {[%emt 0:29:29]} 18. Rfe1 {[%emt 0:06:45]} Nc8 {[%emt 0:05:32][%cal Bb6c8,Bc8a7,Ba7b5][%mdl 32]} 19. Rac1 {[%emt 0:04:17]} Bf5 {[%emt 0:02:08]} 20. Nd2 {[%emt 0:06:04]} Na7 {[%emt 0:07:13]} 21. h3 {[%emt 0:07:16]} Nb5 {[%emt 0:00:53]} 22. Bc5 {[%emt 0:00:20]} a4 {[%emt 0:00:20]} 23. Nc4 {[%emt 0:01:38]} Be6 {[%emt 0:05:35]} 24. Nb6 {[%emt 0:04:53]} a3 {[%emt 0:00:08]} 25. Qd2 {[%emt 0:00:17]} Ra6 {[%emt 0:00:18]} 26. Na4 {[%emt 0:01:55]} Bd5 {[%emt 0:01:57]} 27. Bxd5 {[%emt 0:03:19]} Qxd5 {[%emt 0:00:07]} 28. e3 {[%emt 0:01:45]} Qd8 {[%emt 0:06:09]} 29. exd4 {[%emt 0:02:12]} Rxe1+ {[%emt 0:00:59]} 30. Rxe1 {[%emt 0:00:22] [#] Hoping for Qf4.} Nxd4 {[%emt 0:00:19]} ({Reject} 30... Bxd4 31. Qf4 Bxc5 32. Nxc5 $11) 31. Bxd4 {[%emt 0:02:06]} Bxd4 {[%emt 0:00:09]} 32. Qb4 {[%emt 0:02:47]} b5 {[%emt 0:03:20]} 33. Nc5 {[%emt 0:03:36][%cal Ba4c5,Bc5e4,Be4d6][%mdl 32]} Ra8 {[%emt 0:00:47] [#] White must now prevent ...Qd6.} 34. Ne4 {[%emt 0:01:19] Against Qd6} Kg7 {[%emt 0:02:34]} (34... f5 $17 35. Ng5 Bf6) 35. Rc1 $11 {[%emt 0:00:57] The position is equal.} Bb2 {[%emt 0:07:12]} 36. Rxc6 {[%emt 0:12:14]} Qxd3 {[%emt 0:00:08] aiming for ...Re8.} 37. Qe7 {[%emt 0:00:52] Prevents Re8.} Qd8 {[%emt 0:04:09]} 38. Qd6 {[%emt 0:04:42]} Qxd6 {[%emt 0:04:58]} 39. Nxd6 {[%emt 0:00:04]} Rd8 {[%emt 0:00:42]} 40. Nxb5 {[%emt 0:03:27][%mdl 32768] Weighted Error Value: White=0.09 (flawless) /Black=0.08 (flawless) . Loss on time!?} 1-0